fUST/lending_fUST_20250717
["ID","MTS","AMOUNT","RATE_DAILY","PERIOD"]
[372643585,1752730232709,-460.0,0.0001814,2]
[372643586,1752730232719,-460.0,0.0001814,2]
[372643587,1752730232728,-460.0,0.0001814,2]
[372643588,1752730232738,-460.0,0.0001814,2]
[372643589,1752730232748,-461.30423293,0.0001814,2]
[372643590,1752730232757,-460.38662116,0.0001814,2]
[372643591,1752730232767,-460.0,0.0001814,2]
[372643592,1752730232777,-460.0,0.0001814,2]
[372643593,1752730232786,-466.33210977,0.0001814,2]
[372643594,1752730232796,-460.0,0.0001814,2]
[372643595,1752730232805,-460.0,0.0001814,2]
[372643596,1752730232815,-460.0,0.0001814,2]
[372643597,1752730232826,-462.51434184,0.0001814,2]
[372643598,1752730232835,-460.0,0.0001814,2]
[372643599,1752730232845,-463.56948425,0.0001814,2]
[372643600,1752730232855,-434.63513815,0.0001814,2]
[372643601,1752730232866,-461.01168791,0.0001814,2]
[372643602,1752730232875,-460.0,0.0001814,2]
[372643603,1752730232885,-460.0,0.0001814,2]
[372643604,1752730232895,-461.67166309,0.0001814,2]
[372643605,1752730232905,-460.0,0.0001814,2]
[372643606,1752730232915,-460.0,0.0001814,2]
[372643607,1752730232925,-460.0,0.0001814,2]
[372643608,1752730232934,-460.0,0.0001814,2]
[372643609,1752730232943,-460.0,0.0001814,2]
[372643610,1752730232953,-460.0,0.0001814,2]
[372643611,1752730232962,-460.0,0.0001814,2]
[372643612,1752730232971,-570.47,0.0001814,2]
[372643613,1752730232981,-460.0,0.0001814,2]
[372643614,1752730232990,-500.0,0.0001814,2]
[372643615,1752730233000,-460.0,0.0001814,2]
[372643616,1752730233010,-460.0,0.0001814,2]
[372643617,1752730233021,-460.0,0.0001814,2]
[372643618,1752730233030,-460.0,0.0001814,2]
[372643619,1752730233040,-460.0,0.0001814,2]
[372643620,1752730233049,-3766.05,0.0001814,2]
[372643621,1752730233059,-460.0,0.0001814,2]
[372643622,1752730233069,-460.0,0.0001814,2]
[372643623,1752730233078,-460.0,0.0001814,2]
[372643624,1752730233087,-460.0,0.0001814,2]
[372643625,1752730233097,-460.0,0.0001814,2]
[372643626,1752730233106,-2017.18,0.0001814,2]
[372643627,1752730233116,-460.0,0.0001814,2]
[372643628,1752730233126,-491.02,0.0001814,2]
[372643629,1752730233135,-499.72,0.0001814,2]
[372643630,1752730233145,-558.37,0.0001814,2]
[372643631,1752730233155,-460.0,0.0001814,2]
[372643632,1752730233164,-530.41,0.0001814,2]
[372643633,1752730233173,-682.05,0.0001814,2]
[372643634,1752730233183,-460.0,0.0001814,2]
[372643635,1752730233193,-460.0,0.0001814,2]
[372643636,1752730233202,-1562.54,0.0001814,2]
[372643637,1752730233211,-460.0,0.0001814,2]
[372643638,1752730233221,-460.0,0.0001814,2]
[372643639,1752730233230,-460.0,0.0001814,2]
[372643640,1752730233239,-460.0,0.0001814,2]
[372643641,1752730233248,-482.72,0.0001814,2]
[372643642,1752730233257,-460.0,0.0001814,2]
[372643643,1752730233267,-460.0,0.0001814,2]
[372643644,1752730233276,-1525.6,0.0001814,2]
[372643645,1752730233285,-460.0,0.0001814,2]
[372643646,1752730233295,-460.0,0.0001814,2]
[372643647,1752730233304,-460.0,0.0001814,2]
[372643648,1752730233313,-460.0,0.0001814,2]
[372643649,1752730233322,-460.0,0.0001814,2]
[372643650,1752730233332,-460.0,0.0001814,2]
[372643651,1752730233342,-460.0,0.0001814,2]
[372643652,1752730233351,-460.0,0.0001814,2]
[372643653,1752730233361,-500.0,0.0001814,2]
[372643654,1752730233370,-460.0,0.0001814,2]
[372643655,1752730233379,-460.0,0.0001814,2]
[372643656,1752730233388,-1387.7,0.0001814,2]
[372643657,1752730233397,-460.0,0.0001814,2]
[372643658,1752730233406,-460.0,0.0001814,2]
[372643659,1752730233415,-460.0,0.0001814,2]
[372643660,1752730233424,-460.0,0.0001814,2]
[372643661,1752730233434,-460.0,0.0001814,2]
[372643662,1752730233443,-460.45448775,0.0001814,2]
[372643663,1752730233452,-460.0,0.0001814,2]
[372643664,1752730233462,-460.0,0.0001814,2]
[372643665,1752730233471,-460.0,0.0001814,2]
[372643666,1752730233481,-1143.84,0.0001814,2]
[372643667,1752730233490,-460.0,0.0001814,2]
[372643668,1752730233499,-460.0,0.0001814,2]
[372643669,1752730233508,-460.0,0.0001814,2]
[372643670,1752730233518,-460.0,0.0001814,2]
[372643671,1752730233532,-460.0,0.0001814,2]
[372643672,1752730233542,-460.0,0.0001814,2]
[372643673,1752730233551,-45.21829107,0.0001814,2]
[372643674,1752730233579,-414.78170893,0.0001814,2]
[372643675,1752730233589,-460.0,0.0001814,2]
[372643676,1752730233599,-460.0,0.0001814,2]
[372643677,1752730233617,-460.0,0.0001814,2]
[372643678,1752730233636,-460.0,0.00018141,2]
[372643679,1752730233646,-460.0,0.00018141,2]
[372643680,1752730233655,-460.0,0.00018141,2]
[372643681,1752730233665,-460.0,0.00018141,2]
[372643682,1752730233674,-460.0,0.00018141,2]
[372643683,1752730233683,-289.22129634,0.00018141,2]
[372643684,1752730233699,-170.77870366,0.00018141,2]
[372643685,1752730233709,-357.11942105,0.00018141,2]
[372643695,1752730240375,-200.68307598,0.00018139,2]
[372643696,1752730240384,-500.0,0.00018139,2]
[372643697,1752730240394,-500.0,0.00018139,2]
[372643698,1752730240403,-297.00919604,0.00018139,2]
[372643699,1752730240414,-202.99080396,0.00018139,2]
[372643700,1752730240424,-286.5221885,0.00018139,2]
[372643701,1752730240433,-460.0,0.0001814,2]
[372643702,1752730240443,-102.88057895,0.00018141,2]
[372643703,1752730240452,-439.43163817,0.00018141,2]
[372643704,1752730240461,-542.58,0.00018141,2]
[372643705,1752730240471,-460.0,0.00018141,2]
[372643706,1752730240480,-460.0,0.00018141,2]
[372643707,1752730240489,-460.0,0.00018141,2]
[372643708,1752730240499,-460.0,0.00018141,2]
[372643709,1752730240508,-460.0,0.00018141,2]
[372643710,1752730240518,-460.0,0.00018141,2]
[372643711,1752730240529,-460.0,0.00018141,2]
[372643712,1752730240539,-460.0,0.00018141,2]
[372643713,1752730240548,-460.0,0.00018141,2]
[372643714,1752730240558,-460.0,0.00018141,2]
[372643715,1752730240566,-1269.46,0.00018141,2]
[372643716,1752730240577,-460.0,0.00018141,2]
[372643717,1752730240586,-460.0,0.00018141,2]
[372643718,1752730240595,-460.0,0.00018141,2]
[372643719,1752730240604,-1117.97,0.00018141,2]
[372643720,1752730240613,-460.0,0.00018141,2]
[372643721,1752730240624,-1976.72,0.00018141,2]
[372643722,1752730240634,-529.64567345,0.00018141,2]
[372643723,1752730240643,-535.76689433,0.00018141,2]
[372643724,1752730240653,-460.0,0.00018141,2]
[372643725,1752730240663,-460.0,0.00018141,2]
[372643726,1752730240673,-2154.11,0.00018141,2]
[372643727,1752730240683,-460.0,0.00018141,2]
[372643728,1752730240693,-460.0,0.00018141,2]
[372643729,1752730240704,-960.54,0.00018141,2]
[372643730,1752730240714,-633.41,0.00018141,2]
[372643731,1752730240724,-460.0,0.00018141,2]
[372643732,1752730240735,-410.80514934,0.00018141,2]
[372643733,1752730240744,-2683.85,0.00018141,2]
[372643734,1752730240754,-460.0,0.00018142,2]
[372643735,1752730240763,-460.0,0.00018142,2]
[372643736,1752730240774,-460.0,0.00018142,2]
[372643737,1752730240783,-460.5025434,0.00018142,2]
[372643738,1752730240793,-460.0,0.00018142,2]
[372643739,1752730240802,-460.0,0.00018142,2]
[372643740,1752730240811,-460.0,0.00018142,2]
[372643741,1752730240820,-460.0,0.00018142,2]
[372643742,1752730240830,-460.0,0.00018142,2]
[372643743,1752730240839,-460.0,0.00018142,2]
[372643744,1752730240848,-460.0,0.00018142,2]
[372643745,1752730240859,-460.0,0.00018142,2]
[372643746,1752730240869,-2667.21,0.00018142,2]
[372643747,1752730240878,-857.51,0.00018142,2]
[372643748,1752730240887,-500.0,0.00018143,2]
[372643749,1752730240898,-500.0,0.00018143,2]
[372643750,1752730240907,-460.0,0.00018144,2]
[372643751,1752730240918,-519.10595794,0.00018144,2]
[372643752,1752730240928,-269.56992505,0.00018144,2]
[372643753,1752730240937,-460.0,0.00018144,2]
[372643754,1752730240947,-460.0,0.00018144,2]
[372643755,1752730240956,-460.55100405,0.00018144,2]
[372643756,1752730240966,-474.80682525,0.00018144,2]
[372643757,1752730240975,-460.0,0.00018144,2]
[372643758,1752730240984,-460.0,0.00018144,2]
[372643759,1752730240994,-460.0,0.00018144,2]
[372643760,1752730241003,-460.0,0.00018144,2]
[372643761,1752730241013,-460.0,0.00018144,2]
[372643762,1752730241023,-460.0,0.00018144,2]
[372643763,1752730241033,-488.01963404,0.00018144,2]
[372643764,1752730241042,-460.0,0.00018144,2]
[372643765,1752730241052,-460.0,0.00018144,2]
[372643766,1752730241063,-391.19811497,0.00018144,2]
[372643767,1752730241075,-68.80188503,0.00018144,2]
[372643768,1752730241085,-502.92,0.00018144,2]
[372643769,1752730241095,-460.0,0.00018144,2]
[372643770,1752730241104,-460.0,0.00018144,2]
[372643771,1752730241113,-460.0,0.00018144,2]
[372643772,1752730241123,-460.0,0.00018144,2]
[372643773,1752730241132,-460.0,0.00018144,2]
[372643774,1752730241142,-460.0,0.00018144,2]
[372643775,1752730241152,-460.0,0.00018144,2]
[372643776,1752730241162,-460.0,0.00018144,2]
[372643777,1752730241171,-460.0,0.00018144,2]
[372643778,1752730241180,-460.0,0.00018144,2]
[372643779,1752730241189,-471.13780723,0.00018144,2]
[372643780,1752730241199,-460.0,0.00018144,2]
[372643781,1752730241208,-460.0,0.00018144,2]
[372643782,1752730241217,-460.0,0.00018144,2]
[372643783,1752730241228,-460.0,0.00018144,2]
[372643784,1752730241238,-460.0,0.00018144,2]
[372643785,1752730241248,-460.0,0.00018144,2]
[372643786,1752730241257,-460.0,0.00018144,2]
[372643787,1752730241267,-461.99394899,0.00018144,2]
[372643788,1752730241278,-460.0,0.00018144,2]
[372643789,1752730241287,-460.0,0.00018144,2]
[372643790,1752730241296,-460.0,0.00018144,2]
[372643791,1752730241305,-500.0,0.00018144,2]
[372643792,1752730241315,-460.0,0.00018147,2]
[372643793,1752730241325,-460.0,0.00018147,2]
[372643794,1752730241334,-460.0,0.00018147,2]
[372643795,1752730241343,-466.17666666,0.00018148,2]
[372643796,1752730241352,-460.0,0.00018148,2]
[372643797,1752730241362,-460.0,0.00018148,2]
[372643798,1752730241371,-513.26509811,0.00018148,2]
[372643799,1752730241380,-500.0,0.00018413,2]
[372643800,1752730241390,-460.0,0.00018413,2]
[372643801,1752730241399,-460.0,0.00018413,2]
[372643802,1752730241409,-500.0,0.00018413,2]
[372643803,1752730241419,-460.0,0.00018413,2]
[372643804,1752730241428,-460.0,0.00018413,2]
[372643806,1752730241437,-460.0,0.00018413,2]
[372643807,1752730241447,-460.0,0.00018413,2]
[372643808,1752730241456,-460.0,0.00018413,2]
[372643809,1752730241465,-460.0,0.00018413,2]
[372643810,1752730241475,-460.0,0.00018413,2]
[372643811,1752730241484,-1739.32,0.00018413,2]
[372643812,1752730241493,-460.0,0.00018414,2]
[372643813,1752730241616,-460.0,0.00018414,2]
[372643814,1752730241626,-460.80803837,0.00018414,2]
[372643815,1752730241637,-460.0,0.00018414,2]
[372643816,1752730241646,-460.0,0.00018414,2]
[372643817,1752730241656,-460.0,0.00018414,2]
[372643818,1752730241665,-460.0,0.00018414,2]
[372643819,1752730241675,-460.0,0.00018414,2]
[372643820,1752730241685,-460.0,0.00018414,2]
[372643821,1752730241694,-460.0,0.00018414,2]
[372643822,1752730241704,-460.0,0.00018414,2]
[372643823,1752730241714,-460.0,0.00018414,2]
[372643824,1752730241724,-460.0,0.00018414,2]
[372643825,1752730241734,-460.0,0.00018414,2]
[372643826,1752730241743,-460.0,0.00018414,2]
[372643827,1752730241753,-460.0,0.00018414,2]
[372643828,1752730241762,-460.0,0.00018414,2]
[372643829,1752730241775,-460.0,0.00018414,2]
[372643830,1752730241785,-460.0,0.00018414,2]
[372643831,1752730241794,-460.0,0.00018414,2]
[372643832,1752730241804,-460.0,0.00018414,2]
[372643833,1752730241814,-460.0,0.00018414,2]
[372643834,1752730241823,-460.0,0.00018414,2]
[372643835,1752730241833,-460.0,0.00018414,2]
[372643836,1752730241842,-460.0,0.00018414,2]
[372643837,1752730241852,-462.21705944,0.00018414,2]
[372643838,1752730241861,-462.18883429,0.00018414,2]
[372643839,1752730241871,-460.0,0.00018414,2]
[372643840,1752730241881,-460.0,0.00018414,2]
[372643841,1752730241890,-460.0,0.00018414,2]
[372643842,1752730241899,-570.47,0.00018414,2]
[372643843,1752730241909,-503.00993077,0.00018414,2]
[372643844,1752730241918,-500.0,0.00018414,2]
[372643845,1752730241928,-460.0,0.00018414,2]
[372643846,1752730241937,-3766.05,0.00018414,2]
[372643847,1752730241946,-460.0,0.00018414,2]
[372643848,1752730241956,-460.0,0.00018414,2]
[372643849,1752730241965,-2017.18,0.00018414,2]
[372643850,1752730241974,-460.0,0.00018414,2]
[372643851,1752730241983,-460.0,0.00018414,2]
[372643852,1752730241992,-460.0,0.00018414,2]
[372643853,1752730242001,-491.02,0.00018414,2]
[372643854,1752730242010,-499.72,0.00018414,2]
[372643855,1752730242020,-460.0,0.00018414,2]
[372643856,1752730242030,-558.37,0.00018414,2]
[372643857,1752730242039,-682.05,0.00018414,2]
[372643858,1752730242050,-460.0,0.00018414,2]
[372643859,1752730242059,-1562.54,0.00018414,2]
[372643860,1752730242069,-460.0,0.00018414,2]
[372643861,1752730242079,-482.72,0.00018414,2]
[372643862,1752730242088,-467.65,0.00018414,2]
[372643863,1752730242098,-460.0,0.00018414,2]
[372643864,1752730242107,-1525.6,0.00018414,2]
[372643865,1752730242116,-519.1,0.00018414,2]
[372643866,1752730242125,-460.0,0.00018414,2]
[372643867,1752730242134,-460.0,0.00018414,2]
[372643868,1752730242143,-460.0,0.00018414,2]
[372643869,1752730242152,-460.0,0.00018414,2]
[372643870,1752730242161,-460.0,0.00018414,2]
[372643871,1752730242171,-460.0,0.00018414,2]
[372643872,1752730242180,-500.0,0.00018414,2]
[372643873,1752730242190,-460.0,0.00018414,2]
[372643874,1752730242199,-460.0,0.00018414,2]
[372643875,1752730242208,-80.99068087,0.00018414,2]
[372643932,1752730247156,-460.0,0.00018139,2]
[372643933,1752730247167,-522.93,0.0001814,2]
[372643934,1752730247177,-1306.70931913,0.00018414,2]
[372643935,1752730247189,-460.0,0.00018414,2]
[372643936,1752730247198,-461.36727751,0.00018414,2]
[372643937,1752730247207,-460.0,0.00018414,2]
[372643938,1752730247217,-460.0,0.00018414,2]
[372643939,1752730247227,-460.0,0.00018414,2]
[372643940,1752730247238,-460.0,0.00018414,2]
[372643941,1752730247247,-460.0,0.00018414,2]
[372643942,1752730247257,-460.0,0.00018414,2]
[372643943,1752730247266,-1143.84,0.00018414,2]
[372643944,1752730247277,-460.0,0.00018414,2]
[372643945,1752730247286,-460.0,0.00018414,2]
[372643946,1752730247295,-191.31,0.00018414,2]
[372643947,1752730247304,-460.0,0.00018414,2]
[372643948,1752730247314,-460.0,0.00018414,2]
[372643949,1752730247324,-268.13040052,0.00018414,2]
[372643950,1752730247333,-460.0,0.00018414,2]
[372643951,1752730247342,-460.0,0.00018414,2]
[372643952,1752730247351,-460.0,0.00018414,2]
[372643953,1752730247360,-522.93,0.00018414,2]
[372643954,1752730247455,-427.7209151,0.00018414,2]
[372643955,1752730247484,-460.0,0.00018415,2]
[372643956,1752730247494,-460.0,0.00018415,2]
[372643957,1752730247503,-460.0,0.00018415,2]
[372643958,1752730247512,-460.0,0.00018415,2]
[372643959,1752730247522,-542.58,0.00018415,2]
[372643960,1752730247536,-460.0,0.00018415,2]
[372643961,1752730247546,-460.0,0.00018415,2]
[372643962,1752730247555,-460.0,0.00018415,2]
[372643963,1752730247565,-460.0,0.00018415,2]
[372643964,1752730247575,-1269.46,0.00018415,2]
[372643965,1752730247584,-460.0,0.00018415,2]
[372643966,1752730247593,-1117.97,0.00018415,2]
[372643967,1752730247605,-1976.72,0.00018415,2]
[372643968,1752730247614,-460.0,0.00018415,2]
[372643969,1752730247624,-460.0,0.00018415,2]
[372643970,1752730247634,-2154.11,0.00018415,2]
[372643971,1752730247644,-960.54,0.00018415,2]
[372643972,1752730247653,-633.41,0.00018415,2]
[372643973,1752730247664,-2683.85,0.00018415,2]
[372643974,1752730247674,-460.0,0.00018416,2]
[372643975,1752730247684,-460.0,0.00018416,2]
[372643976,1752730247694,-174.840189,0.00018416,10]
[372643977,1752730247704,-2667.21,0.00018416,2]
[372643978,1752730247713,-857.51,0.00018416,2]
[372643979,1752730247723,-500.0,0.00018417,2]
[372643980,1752730247734,-460.0,0.00018418,2]
[372643981,1752730247744,-460.0,0.00018418,2]
[372643982,1752730247754,-460.0,0.00018418,2]
[372643983,1752730247764,-502.92,0.00018418,2]
[372643984,1752730247774,-460.0,0.00018418,2]
[372643985,1752730247786,-460.0,0.00018418,2]
[372643986,1752730247795,-460.0,0.00018418,2]
[372643987,1752730247805,-460.0,0.00018418,2]
[372643988,1752730247814,-460.0,0.00018418,2]
[372643989,1752730247823,-460.0,0.00018418,2]
[372643990,1752730247833,-460.0,0.00018418,2]
[372643991,1752730247843,-460.0,0.00018419,2]
[372643992,1752730247852,-460.0,0.00018419,2]
[372643993,1752730247862,-460.0,0.00018419,2]
[372643994,1752730247871,-605.38198395,0.00018419,2]
[372643995,1752730247881,-151.0,0.00018422,2]
[372643996,1752730247891,-151.0,0.00018422,2]
[372643997,1752730247900,-460.0,0.00018422,2]
[372643998,1752730247910,-460.0,0.00018422,2]
[372643999,1752730247920,-179.083867,0.00018423,2]
[372644000,1752730247929,-179.083867,0.00018423,2]
[372644001,1752730247939,-151.0,0.00018592,2]
[372644002,1752730247948,-336.64414175,0.00018614,2]
[372644003,1752730247957,-500.0,0.00018614,2]
[372644004,1752730247967,-606.71601871,0.00018614,2]
[372644005,1752730247977,-500.0,0.00018614,2]
[372644006,1752730247987,-643.25125216,0.00018635,2]
[372644007,1752730247996,-500.0,0.00018635,2]
[372644008,1752730248005,-500.0,0.00018635,2]
[372644009,1752730248015,-500.0,0.00018635,2]
[372644010,1752730248024,-501.15315688,0.00018635,2]
[372644011,1752730248034,-500.0,0.00018635,2]
[372644012,1752730248043,-500.0,0.00018635,2]
[372644013,1752730248053,-501.93963495,0.00018635,2]
[372644014,1752730248062,-161.98781375,0.00018643,2]
[372644015,1752730248072,-518.21826415,0.00018643,2]
[372644016,1752730248081,-500.0,0.00018643,2]
[372644017,1752730248090,-502.41079222,0.00018672,2]
[372644018,1752730248099,-527.9,0.00018678,3]
[372644019,1752730248108,-460.0,0.00018687,2]
[372644020,1752730248117,-460.0,0.00018687,2]
[372644021,1752730248127,-460.0,0.00018687,2]
[372644022,1752730248136,-317.75233059,0.00018687,2]
[372644025,1752730321182,11500.8271081,0.00017439,2]
[372644053,1752730541637,150.0,0.00016418,2]
[372644054,1752730542518,3383.61853122,0.0001804,2]
[372644056,1752730613039,-438.67972223,0.00018138,2]
[372644057,1752730615400,-21.32027777,0.00018138,2]
[372644058,1752730615423,-261.4482381,0.00018138,2]
[372644060,1752730619975,-198.5517619,0.00018138,2]
[372644061,1752730620000,-62.938331,0.00018138,2]
[372644062,1752730621953,165.0,0.000181,2]
[372644063,1752730624341,165.0,0.000181,2]
[372644064,1752730624374,-230.21401942,0.00018138,2]
[372644065,1752730627917,-229.78598058,0.00018138,2]
[372644066,1752730627942,-39.64202639,0.00018138,2]
[372644067,1752730629523,-420.35797361,0.00018138,2]
[372644068,1752730630724,165.0,0.000181,2]
[372644069,1752730633270,165.0,0.000181,3]
[372644070,1752730634526,165.0,0.000181,3]
[372644071,1752730638282,-300.0,0.00018138,2]
[372644072,1752730641335,-160.0,0.00018138,2]
[372644073,1752730641356,-93.41463419,0.00018138,2]
[372644074,1752730645526,-171.10137273,0.00018138,2]
[372644075,1752730650447,-194.08634804,0.00018138,2]
[372644076,1752730652063,-2.74672037,0.00018138,2]
[372644077,1752730652086,-157.76141621,0.00018138,2]
[372644078,1752730653524,165.0,0.000273,120]
[372644079,1752730654404,-181.09835283,0.00018138,2]
[372644080,1752730658381,-121.14023096,0.00018138,2]
[372644081,1752730660493,165.0,0.000273,120]
[372644084,1752730671779,165.0,0.000181,2]
[372644090,1752730748343,-178.85976904,0.00018137,2]
[372644091,1752730751124,-121.14023096,0.00018137,2]
[372644092,1752730751147,-49.63675084,0.00018138,2]
[372644094,1752730754519,-296.63089763,0.00018138,2]
[372644095,1752730758928,-113.73235153,0.00018138,2]
[372644096,1752730758949,-215.16782492,0.00018138,2]
[372644097,1752730761110,-182.89301801,0.00018138,2]
[372644098,1752730763312,-61.93915707,0.00018138,2]
[372644099,1752730763335,-186.66420486,0.00018138,2]
[372644100,1752730766057,-230.21187968,0.00018138,2]
[372644103,1752730767621,-43.12391546,0.00018138,2]
[372644104,1752730767646,-276.78345802,0.00018138,2]
[372644105,1752730769148,-314.62338929,0.00018138,2]
[372644106,1752730771309,-286.58388966,0.00018138,2]
[372644107,1752730774362,-386.67019051,0.00018138,2]
[372644108,1752730776513,-162.53475898,0.00018138,2]
[372644109,1752730778186,-205.77172925,0.00018138,2]
[372644110,1752730781011,-164.19258429,0.00018138,2]
[372644111,1752730781033,-349.26291485,0.00018138,2]
[372644112,1752730782721,-110.73708515,0.00018138,2]
[372644113,1752730782745,-340.55063513,0.00018138,2]
[372644115,1752730784943,-119.44936487,0.00018138,2]
[372644116,1752730784968,-180.55063513,0.00018138,2]
[372644117,1752730787195,-163.63499744,0.00018138,2]
[372644118,1752730788971,-155.70149908,0.00018138,2]
[372644131,1752730965007,302.04142421,0.00027,120]
[372644133,1752730981156,-181.99,0.0001813,3]
[372644134,1752730981180,-99.56134213,0.0001813,3]
[372644143,1752731033341,281.5513421,0.00017139,2]
[372644158,1752731188457,1296.37556241,0.00018039,2]
[372644248,1752731302951,152.0,0.00024,120]
[372644249,1752731303318,193.21968205,0.0001803,2]
[372644250,1752731303768,193.21968203,0.00018032,2]
[372644251,1752731304231,193.21968203,0.00018034,2]
[372644252,1752731304331,152.0,0.000252,120]
[372644253,1752731304687,193.21968203,0.00018035,2]
[372644254,1752731305186,193.21968203,0.00018037,2]
[372644255,1752731305727,152.0,0.000263,120]
[372644258,1752731327937,17565.6198149,0.00017137,2]
[372644268,1752731350212,146458.00822825,0.00018039,2]
[372644269,1752731351101,-153.05997989,0.00018039,2]
[372644270,1752731353366,-243.64088542,0.00018039,2]
[372644271,1752731356768,-170.3824128,0.00018039,2]
[372644272,1752731358385,-280.09072021,0.00018039,2]
[372644274,1752731360170,-318.85390892,0.00018039,2]
[372644275,1752731361691,150.0,0.00027396,120]
[372644276,1752731363040,-183.24980077,0.00018039,2]
[372644277,1752731365303,-152.21953588,0.00018039,2]
[372644278,1752731366747,-293.11861085,0.00018039,2]
[372644279,1752731368832,-254.35563105,0.00018039,2]
[372644280,1752731372063,-202.93548884,0.00018039,2]
[372644281,1752731374246,-193.99581431,0.00018039,2]
[372644284,1752731380432,-251.28062666,0.00018039,2]
[372644285,1752731383220,-161.0,0.00018039,2]
[372644286,1752731386538,-228.50368866,0.00018039,2]
[372644287,1752731388673,-250.99039091,0.00018039,2]
[372644288,1752731390833,-289.21266355,0.00018039,2]
[372644289,1752731392912,-265.53048062,0.00018039,2]
[372644291,1752731396245,-263.27606042,0.00018039,2]
[372644292,1752731397769,-162.80713014,0.00018039,2]
[372644293,1752731399737,-205.87322233,0.00018039,2]
[372644294,1752731401173,-162.63270375,0.00018039,2]
[372644295,1752731403840,-157.65125675,0.00018039,2]
[372644296,1752731406686,-154.95047714,0.00018039,2]
[372644297,1752731411832,-376.10325438,0.00018039,2]
[372644298,1752731414619,-176.0895589,0.00018039,2]
[372644299,1752731416842,-240.14156448,0.00018039,2]
[372644300,1752731418590,-396.07774841,0.00018039,2]
[372644302,1752731423141,-179.00637629,0.00018039,2]
[372644303,1752731428541,-176.85953272,0.00018039,2]
[372644305,1752731430765,-305.35546147,0.00018039,2]
[372644325,1752731432683,-4111.13784906,0.00018039,2]
[372644327,1752731432694,-1200.0,0.00018127,2]
[372644329,1752731432703,-300.0,0.00018128,2]
[372644331,1752731432714,-81.17946811,0.00018128,2]
[372644346,1752731432927,-218.82053189,0.00018128,2]
[372644348,1752731432936,-300.0,0.00018128,2]
[372644350,1752731432947,-227.06036227,0.00018128,2]
[372644353,1752731438404,-72.93963773,0.00018128,2]
[372644354,1752731438414,-300.0,0.00018128,2]
[372644355,1752731438424,-500.0,0.00018128,2]
[372644356,1752731438434,-211.73013119,0.00018128,2]
[372644357,1752731438444,-192.9,0.00018129,3]
[372644358,1752731438453,-578.75,0.00018129,3]
[372644359,1752731438463,-820.02,0.00018129,3]
[372644360,1752731438472,-262.92,0.00018129,3]
[372644361,1752731438482,-268.36,0.00018129,3]
[372644362,1752731438493,-805.08,0.00018129,3]
[372644363,1752731438503,-446.44865787,0.0001813,3]
[372644364,1752731438513,-385.8,0.0001813,3]
[372644366,1752731438522,-160.0,0.00018135,2]
[372644368,1752731438532,-300.0,0.00018135,2]
[372644370,1752731438542,-199.77291389,0.00018135,2]
[372644371,1752731438552,-500.0,0.00018135,2]
[372644372,1752731438562,-221.50304984,0.00018135,2]
[372644373,1752731438571,-60.44183304,0.00018135,2]
[372644375,1752731438587,-439.55816696,0.00018135,2]
[372644376,1752731438598,-500.0,0.00018135,2]
[372644377,1752731438608,-500.0,0.00018135,2]